bitfinex/quotes_BTCUSD_20240817
["timestamp","ask_amount","ask_price","bid_price","bid_amount"]
[1723882705209,0.001825,59288.0,59287.0,0.84923654]
[1723882705412,0.002825,59288.0,59287.0,0.85923654]
[1723882705555,0.002825,59288.0,59287.0,0.58636354]
[1723882705893,0.001825,59288.0,59287.0,0.58636354]
[1723882706239,0.001825,59288.0,59287.0,0.85623654]
[1723882707262,0.002825,59288.0,59287.0,0.85923654]
[1723882710619,0.002825,59288.0,59287.0,0.94093654]
[1723882711036,0.002825,59288.0,59287.0,1.21080954]
[1723882711228,0.002825,59288.0,59287.0,0.94093654]
[1723882712334,0.002825,59288.0,59287.0,1.21080954]
[1723882712974,0.002825,59288.0,59287.0,0.94093654]
[1723882714170,0.002825,59288.0,59287.0,1.21080954]
[1723882714386,0.002825,59288.0,59287.0,1.00673654]
[1723882714901,0.002825,59288.0,59287.0,1.27660954]
[1723882715414,0.002825,59288.0,59287.0,1.00673654]
[1723882715731,0.002825,59288.0,59287.0,1.27660954]
[1723882715928,0.002825,59288.0,59287.0,1.00673654]
[1723882721991,0.002825,59288.0,59287.0,1.27660954]
[1723882722198,0.002825,59288.0,59287.0,1.27960954]
[1723882722372,0.002825,59288.0,59287.0,1.27660954]
[1723882722565,0.002825,59288.0,59287.0,1.27760954]
[1723882723196,0.002825,59288.0,59287.0,1.27660954]
[1723882723515,0.002825,59288.0,59287.0,1.27760954]
[1723882724318,0.002825,59288.0,59287.0,1.27660954]
[1723882724950,0.002825,59288.0,59287.0,1.29847462]
[1723882725273,0.002825,59288.0,59287.0,1.27660954]
[1723882727485,0.00126466,59288.0,59287.0,1.27660954]
[1723882731192,0.00126466,59288.0,59287.0,1.27751594]
[1723882731612,0.00208866,59288.0,59287.0,1.27751594]
[1723882733892,0.00208866,59288.0,59287.0,1.40038079]
[1723882734685,0.00208866,59288.0,59287.0,1.73782379]
[1723882734890,0.00208866,59288.0,59287.0,1.46695079]
[1723882735212,0.00208866,59288.0,59287.0,1.73682379]
[1723882735606,0.00208866,59288.0,59287.0,1.46695079]
[1723882736057,0.00208866,59288.0,59287.0,1.66925379]
[1723882736261,0.00208866,59288.0,59287.0,1.39938079]
[1723882736409,0.00208866,59288.0,59287.0,1.46695079]
[1723882736631,0.00208866,59288.0,59287.0,1.44508594]
[1723882736834,0.00208866,59288.0,59287.0,1.46695044]
[1723882737018,0.00208866,59288.0,59287.0,1.39938058]
[1723882737222,0.00208866,59288.0,59287.0,1.37751594]
[1723882738125,0.00208866,59288.0,59287.0,1.66925374]
[1723882738571,0.00208866,59288.0,59287.0,1.64738894]
[1723882738781,0.07838866,59288.0,59287.0,1.23001594]
[1723882741216,0.14408866,59288.0,59287.0,1.23001594]
[1723882744572,0.14408866,59288.0,59287.0,1.13001594]
[1723882752637,0.15936029,59288.0,59287.0,1.13001594]
[1723882755631,0.15936029,59288.0,59287.0,0.86014294]
[1723882757885,0.09366029,59288.0,59287.0,0.86014294]
[1723882758333,0.07838866,59288.0,59287.0,0.86014294]
[1723882758711,0.00208866,59288.0,59287.0,0.86014294]
[1723882758912,0.00208866,59288.0,59287.0,1.13001594]
[1723882759295,0.00208866,59288.0,59287.0,1.21031594]
[1723882759717,0.00208866,59288.0,59287.0,1.13001594]
[1723882763170,0.00208866,59288.0,59287.0,1.22471594]
[1723882763572,0.00208866,59288.0,59287.0,1.22571594]
[1723882763791,0.00208866,59288.0,59287.0,1.37241594]
[1723882764581,0.00208866,59288.0,59287.0,1.37441594]
[1723882764792,0.00208866,59288.0,59287.0,1.37141594]
[1723882765026,0.00208866,59288.0,59287.0,1.37241594]
[1723882765223,0.00208866,59288.0,59287.0,1.37141594]
[1723882766608,0.00208866,59288.0,59287.0,1.37241594]
[1723882768373,0.00208866,59288.0,59287.0,1.37141594]
[1723882774089,0.00208866,59288.0,59287.0,1.22471594]
[1723882785708,0.00208866,59288.0,59287.0,1.22571594]
[1723882785927,0.00208866,59288.0,59287.0,1.49249334]
[1723882786335,0.00208866,59288.0,59287.0,1.50178403]
[1723882786815,0.00208866,59288.0,59287.0,1.77165703]
[1723882787046,0.00208866,59288.0,59287.0,2.23112719]
[1723882787254,0.00208866,59288.0,59287.0,2.22936868]
[1723882788107,0.00208866,59288.0,59287.0,1.87259088]
[1723882788313,0.00208866,59288.0,59287.0,1.80700771]
[1723882788516,0.00208866,59288.0,59287.0,1.85760172]
[1723882788717,0.00208866,59288.0,59287.0,1.80700463]
[1723882788902,0.00208866,59288.0,59287.0,1.85760189]
[1723882790320,0.00208866,59288.0,59287.0,1.80700463]
[1723882793140,0.00204016,59288.0,59287.0,1.80700463]
[1723882793588,0.00104016,59288.0,59287.0,1.80400463]
[1723882793788,0.001824,59288.0,59287.0,1.80800463]
[1723882794448,0.001824,59288.0,59287.0,1.79871474]
[1723882794740,0.001824,59288.0,59287.0,1.80800459]
[1723882794954,0.001824,59288.0,59287.0,1.77673962]
[1723882795163,0.001824,59288.0,59287.0,1.82200451]
[1723882801903,0.001824,59288.0,59287.0,1.79073962]
[1723882802073,0.001824,59288.0,59287.0,1.82200447]
[1723882806453,0.001824,59288.0,59287.0,1.79073962]
[1723882806579,0.001824,59288.0,59287.0,1.82200447]
[1723882806783,0.001824,59288.0,59287.0,1.81271463]
[1723882806989,0.001824,59288.0,59287.0,1.82200451]
[1723882810604,0.001824,59288.0,59287.0,1.82100451]
[1723882810813,0.001824,59288.0,59287.0,1.40733151]
[1723882811020,0.001824,59288.0,59287.0,1.40933151]
[1723882811558,0.001824,59288.0,59287.0,1.67920451]
[1723882811759,0.001824,59288.0,59287.0,1.85710451]
[1723882811966,0.001824,59288.0,59287.0,1.67920451]
[1723882814923,0.001824,59288.0,59287.0,1.30963151]
[1723882815126,0.001824,59288.0,59287.0,1.37304166]
[1723882815333,0.001824,59288.0,59287.0,1.38233253]
[1723882815813,0.001824,59288.0,59287.0,1.38233448]
[1723882816216,0.001824,59288.0,59287.0,1.38433448]
[1723882816440,0.001824,59288.0,59287.0,1.3719838]
[1723882816860,0.143924,59288.0,59287.0,1.36169293]
[1723882817062,0.143924,59288.0,59287.0,1.24501594]
[1723882819336,0.143924,59288.0,59287.0,1.33971594]
[1723882831771,0.080324,59288.0,59287.0,1.34271594]
[1723882831995,0.001824,59288.0,59287.0,1.34271594]
[1723882832222,0.001824,59288.0,59287.0,1.61258894]
[1723882833096,0.001824,59288.0,59287.0,1.60958894]
[1723882833452,0.001824,59288.0,59287.0,1.62078952]
[1723882834864,0.001824,59288.0,59287.0,1.62278952]
[1723882835965,0.001824,59288.0,59287.0,1.68358952]
[1723882836193,0.001824,59288.0,59287.0,1.76168952]
[1723882837340,0.001824,59288.0,59287.0,1.60958894]
[1723882837996,0.001824,59288.0,59287.0,1.61258894]
[1723882838218,0.001824,59288.0,59287.0,1.63456622]
[1723882843445,0.001824,59288.0,59287.0,2.06833922]
[1723882843651,0.001824,59288.0,59287.0,2.07763]
[1723882843862,0.001824,59288.0,59287.0,2.1647027]
[1723882844074,0.001824,59288.0,59287.0,2.11412459]
[1723882844285,0.001,59288.0,59287.0,2.63776475]
[1723882844494,0.000825,59299.0,59287.0,2.63776475]
[1723882844495,0.000825,59299.0,59298.0,1.489026]
[1723882844724,0.000825,59299.0,59298.0,2.09901373]
[1723882845571,0.000825,59299.0,59298.0,2.0484486]
[1723882845818,0.000825,59299.0,59298.0,2.0624486]
[1723882846277,0.000825,59299.0,59298.0,2.0764486]
[1723882846478,0.000825,59299.0,59298.0,2.07246995]
[1723882846687,0.000825,59299.0,59298.0,2.08646995]
[1723882847524,0.000825,59299.0,59298.0,2.07246995]
[1723882847934,0.000825,59299.0,59298.0,2.08646995]
[1723882848816,0.000825,59299.0,59298.0,2.08646191]
[1723882850242,0.000825,59299.0,59298.0,2.07717368]
[1723882851217,0.000825,59299.0,59298.0,2.07717377]
[1723882853147,0.000825,59299.0,59298.0,1.80735077]
[1723882854789,0.000825,59299.0,59298.0,1.87489977]
[1723882855038,0.000825,59299.0,59298.0,1.85292789]
[1723882855260,0.000825,59299.0,59298.0,1.87489979]
[1723882855469,0.000825,59299.0,59298.0,1.85292789]
[1723882858039,0.000825,59299.0,59298.0,1.71402789]
[1723882864205,0.000825,59299.0,59298.0,1.7359999]
[1723882865428,0.143025,59299.0,59298.0,1.62627855]
[1723882865644,0.143025,59299.0,59298.0,1.58130654]
[1723882865867,0.143025,59299.0,59298.0,1.67600654]
[1723882866315,0.143025,59299.0,59298.0,1.50845754]
[1723882866534,0.143025,59299.0,59298.0,1.49445754]
[1723882867620,0.143025,59299.0,59298.0,1.58045754]
[1723882868052,0.143025,59299.0,59298.0,1.59445754]
[1723882868262,0.143025,59299.0,59298.0,1.58145754]
[1723882868476,0.143025,59299.0,59298.0,1.59445754]
[1723882868913,0.143025,59299.0,59298.0,1.58045754]
[1723882869132,0.143025,59299.0,59298.0,1.60845754]
[1723882871231,0.143025,59299.0,59298.0,1.61145754]
[1723882872319,0.143025,59299.0,59298.0,1.24393454]
[1723882889845,0.143025,59299.0,59298.0,0.87411154]
[1723882890116,0.143025,59299.0,59298.0,0.60428854]
[1723882890368,0.15793889,59299.0,59298.0,0.60428854]
[1723882890855,0.15793889,59299.0,59298.0,0.32046554]
[1723882891097,0.15793889,59299.0,59298.0,0.19955454]
[1723882891098,0.30315048,59299.0,59298.0,0.19955454]
[1723882891366,0.32840627,59299.0,59298.0,0.18555454]
[1723882891606,0.30313628,59299.0,59298.0,0.18555454]
[1723882891864,0.30313628,59299.0,59298.0,0.17155454]
[1723882892109,0.30313628,59299.0,59298.0,0.33046554]
[1723882893289,0.30313628,59299.0,59298.0,0.31646554]
[1723882894137,0.30313628,59299.0,59298.0,0.32546554]
[1723882894806,0.25263889,59299.0,59298.0,0.32546554]
[1723882895013,0.25263889,59299.0,59298.0,0.19055454]
[1723882900860,0.25263889,59299.0,59298.0,0.32546554]
[1723882901268,0.15793889,59299.0,59298.0,0.32546554]
[1723882906569,0.15793889,59299.0,59298.0,0.59528854]
[1723882907719,0.15793889,59299.0,59298.0,0.32546554]
[1723882909342,0.15793889,59299.0,59298.0,0.59528854]
[1723882914046,0.09583889,59299.0,59298.0,0.86511154]
[1723882914254,0.01573889,59299.0,59298.0,0.86511154]
[1723882916620,0.01573889,59299.0,59298.0,0.59528854]
[1723882916824,0.01573889,59299.0,59298.0,0.86511154]
[1723882917879,0.06623411,59299.0,59298.0,0.86511154]
[1723882918933,0.01573889,59299.0,59298.0,0.86511154]
[1723882919551,0.06623411,59299.0,59298.0,0.86511154]
[1723882919993,0.0662423,59299.0,59298.0,0.86511154]
[1723882921253,0.0751333,59299.0,59298.0,0.86511154]
[1723882921478,0.02462989,59299.0,59298.0,0.86511154]
[1723882925711,0.0751333,59299.0,59298.0,0.86511154]
[1723882925923,0.02462989,59299.0,59298.0,0.86511154]
[1723882926342,0.0751333,59299.0,59298.0,0.86511154]
[1723882927605,0.02462989,59299.0,59298.0,0.86511154]
[1723882927873,0.07517407,59299.0,59298.0,0.86511154]
[1723882928112,0.07517407,59299.0,59298.0,0.59528854]
[1723882928361,0.02462989,59299.0,59298.0,0.59528854]
[1723882929532,0.10662989,59299.0,59298.0,0.59528854]
[1723882930436,0.18238501,59299.0,59298.0,0.59528854]
[1723882932373,0.10662989,59299.0,59298.0,0.59528854]
[1723882932604,0.18246866,59299.0,59298.0,0.59528854]
[1723882934699,0.12530139,59299.0,59298.0,0.59528854]
[1723882935330,0.22641976,59299.0,59298.0,0.59528854]
[1723882939299,0.14441976,59299.0,59298.0,0.59528854]
[1723882942715,0.14441976,59299.0,59298.0,0.86511154]
[1723882942942,0.14441976,59299.0,59298.0,1.37313454]
[1723882942943,0.02462989,59299.0,59298.0,1.37313454]
[1723882943650,0.000825,59299.0,59298.0,1.37313454]
[1723882946022,0.02463123,59299.0,59298.0,1.37313454]
[1723882946497,0.02463123,59299.0,59298.0,1.31303454]
[1723882947721,0.000825,59299.0,59298.0,1.31303454]
[1723882953109,0.000825,59299.0,59298.0,1.37313454]
[1723882954867,0.000825,59299.0,59298.0,1.36413454]
[1723882955081,0.000825,59299.0,59298.0,1.36813454]
[1723882955300,0.000825,59299.0,59298.0,1.38213454]
[1723882964428,0.000825,59299.0,59298.0,1.38313454]
[1723882964642,0.000825,59299.0,59298.0,1.38213454]
[1723882966840,0.000825,59299.0,59298.0,1.38313454]
[1723882967047,0.000825,59299.0,59298.0,1.38213454]
[1723882974014,0.000825,59299.0,59298.0,1.65195754]
[1723882974652,0.000825,59299.0,59298.0,1.65295754]
[1723882975748,0.000825,59299.0,59298.0,1.65195754]
[1723882976645,0.000825,59299.0,59298.0,1.67404277]
[1723882977291,0.000825,59299.0,59298.0,1.67504277]
[1723882979527,0.000825,59299.0,59298.0,1.67404277]
[1723882980453,0.000825,59299.0,59298.0,1.67404276]
[1723882980881,0.000825,59299.0,59298.0,1.65195754]
[1723882981094,0.000825,59299.0,59298.0,1.67404277]
[1723882981767,0.000825,59299.0,59298.0,1.61394277]
[1723882984423,0.000825,59299.0,59298.0,1.61494277]
[1723882984636,0.000825,59299.0,59298.0,1.61694277]
[1723882984844,0.000825,59299.0,59298.0,1.62623196]
[1723882988533,0.000825,59299.0,59298.0,1.59485754]
[1723882988745,0.000825,59299.0,59298.0,1.62623196]
[1723882989462,0.000825,59299.0,59298.0,1.68963196]
[1723882990525,0.000825,59299.0,59298.0,1.71263196]
[1723882992485,0.000825,59299.0,59298.0,1.70963196]
[1723882993182,0.000825,59299.0,59298.0,1.70963184]
[1723882993617,0.000825,59299.0,59298.0,1.70034263]
[1723882993837,0.000825,59299.0,59298.0,1.70963182]
[1723882994044,0.000825,59299.0,59298.0,1.71063182]
[1723882994674,0.000825,59299.0,59298.0,1.71263182]
[1723882997708,0.000825,59299.0,59298.0,1.67825754]
[1723882997920,0.000825,59299.0,59298.0,1.64623184]
[1723882998786,0.000825,59299.0,59298.0,1.64723184]
[1723882998994,0.000825,59299.0,59298.0,1.64923184]
[1723883000512,0.000825,59299.0,59298.0,1.71163184]
[1723883004628,0.000825,59299.0,59298.0,1.71363184]
[1723883006602,0.000825,59299.0,59298.0,1.71363159]
[1723883010311,0.000825,59299.0,59298.0,1.98345459]
[1723883010528,0.000825,59299.0,59298.0,2.47616935]
[1723883010960,0.000825,59299.0,59298.0,2.68453135]
[1723883011191,0.000825,59299.0,59298.0,2.53256779]
[1723883011612,0.000825,59299.0,59298.0,2.35662795]
[1723883011823,0.000825,59299.0,59298.0,2.4481667]
[1723883012040,0.000825,59299.0,59298.0,2.4621667]
[1723883012252,0.000825,59299.0,59298.0,2.4761667]
[1723883012535,0.000825,59299.0,59298.0,2.38462795]
[1723883012746,0.000825,59299.0,59298.0,2.37062795]
[1723883013386,0.000825,59299.0,59298.0,2.74671348]
[1723883013572,0.000825,59299.0,59298.0,2.74537622]
[1723883014879,0.000825,59299.0,59298.0,2.73137622]
[1723883015068,0.000825,59299.0,59298.0,2.70337622]
[1723883015311,0.000825,59299.0,59298.0,2.73137622]
[1723883015758,0.000825,59299.0,59298.0,2.70337622]
[1723883016190,0.000825,59299.0,59298.0,2.73137622]
[1723883017056,0.000825,59299.0,59298.0,2.82111317]
[1723883017752,0.000825,59299.0,59298.0,2.76471425]
[1723883017962,0.000825,59299.0,59298.0,2.76405692]
[1723883019448,0.000825,59299.0,59298.0,2.63771113]
[1723883020127,0.000825,59299.0,59298.0,2.60634154]
[1723883020364,0.000825,59299.0,59298.0,2.63770976]
[1723883021004,0.000825,59299.0,59298.0,2.73875044]
[1723883022871,0.000825,59299.0,59298.0,2.73875045]
[1723883025473,0.000825,59299.0,59298.0,2.73875043]
[1723883026544,0.000825,59299.0,59298.0,2.63770975]
[1723883026960,0.000825,59299.0,59298.0,2.73875043]
[1723883027379,0.000825,59299.0,59298.0,2.63770975]
[1723883028300,0.000825,59299.0,59298.0,2.62842256]
[1723883028505,0.000825,59299.0,59298.0,2.63770973]
[1723883031447,0.000825,59299.0,59298.0,2.73875041]
[1723883031663,0.000825,59299.0,59298.0,2.79514548]
[1723883032077,0.000825,59299.0,59298.0,2.83177118]
[1723883032491,0.000825,59299.0,59298.0,2.75329451]
[1723883032699,0.000825,59299.0,59298.0,2.83177006]
[1723883036984,0.000825,59299.0,59298.0,2.83176999]
[1723883039497,0.0814,59310.0,59309.0,0.0997]
[1723883039729,0.0814,59310.0,59309.0,1.00005432]
[1723883039945,0.0814,59310.0,59309.0,1.36982732]
[1723883040156,0.0814,59310.0,59309.0,1.90937332]
[1723883040373,0.0814,59310.0,59309.0,1.94599855]
[1723883040848,0.0814,59310.0,59309.0,1.95999855]
[1723883041296,0.0814,59310.0,59309.0,2.02753555]
[1723883041723,0.0814,59310.0,59309.0,2.04153555]
[1723883041939,0.0814,59310.0,59309.0,2.05177772]
[1723883043674,0.0814,59310.0,59309.0,2.01515249]
[1723883043894,0.0814,59310.0,59309.0,2.01515119]
[1723883044106,0.0814,59310.0,59309.0,2.01515055]
[1723883044322,0.0814,59310.0,59309.0,2.05177355]
[1723883044541,0.0814,59310.0,59309.0,2.01515055]
[1723883044762,0.082225,59310.0,59309.0,2.01515055]
[1723883045193,0.082225,59310.0,59309.0,2.05177355]
[1723883045409,0.082225,59310.0,59309.0,2.01515055]
[1723883045651,0.082225,59310.0,59309.0,2.00586416]
[1723883045887,0.082225,59310.0,59309.0,2.05177356]
[1723883046124,0.082225,59310.0,59309.0,2.01515056]
[1723883046584,0.082225,59310.0,59309.0,2.05177356]
[1723883046798,0.000825,59310.0,59309.0,2.28492356]
[1723883046998,0.146425,59310.0,59309.0,0.69931134]
[1723883047264,0.146425,59310.0,59309.0,0.80325456]
[1723883047705,0.16138438,59310.0,59309.0,0.80325456]
[1723883047929,0.146425,59310.0,59309.0,0.80325456]
[1723883048143,0.16138438,59310.0,59309.0,0.53348156]
[1723883048391,0.146425,59310.0,59309.0,0.54748156]
[1723883048826,0.16138438,59310.0,59309.0,0.54748156]
[1723883049466,0.16138438,59310.0,59309.0,0.56148156]
[1723883049688,0.16138438,59310.0,59309.0,0.54748156]
[1723883050321,0.16238438,59310.0,59309.0,0.56148156]
[1723883051034,0.16138438,59310.0,59309.0,0.54748156]
[1723883051216,0.16238438,59310.0,59309.0,0.56148156]
[1723883051452,0.16238438,59310.0,59309.0,0.83125456]
[1723883051662,0.16238438,59310.0,59309.0,0.56148156]
[1723883057700,0.25708438,59310.0,59309.0,0.29170856]
[1723883058462,0.3075427,59310.0,59309.0,0.29170856]
[1723883060403,0.25708438,59310.0,59309.0,0.29170856]
[1723883063109,0.25708438,59310.0,59309.0,0.15682256]
[1723883063361,0.25708438,59310.0,59309.0,0.29170856]
[1723883063603,0.25708438,59310.0,59309.0,0.15682256]
[1723883064486,0.25708438,59310.0,59309.0,0.29170856]
[1723883067635,0.25708438,59310.0,59309.0,0.15682256]
[1723883069095,0.25708438,59310.0,59309.0,0.15772896]
[1723883070602,0.25708438,59310.0,59309.0,0.0289064]
[1723883070603,0.39196838,59310.0,59309.0,0.0289064]
[1723883070819,0.7121384,59310.0,59309.0,0.0289064]
[1723883071033,0.66173738,59310.0,59309.0,0.0289064]
[1723883071468,0.71213311,59310.0,59309.0,0.0289064]
[1723883071676,0.93150638,59310.0,59309.0,0.0289064]
[1723883071887,0.93150638,59310.0,59309.0,0.0149064]
[1723883072099,0.93150638,59310.0,59309.0,0.0009064]
[1723883072100,1.49175612,59310.0,59309.0,0.0009064]
[1723883072333,1.51795664,59310.0,59309.0,0.0079064]
[1723883072538,1.51895664,59310.0,59309.0,0.0139064]
[1723883072743,1.39295407,59310.0,59309.0,0.0139064]
[1723883072947,1.39295407,59310.0,59309.0,0.0009064]
[1723883072948,1.39195407,59310.0,59309.0,0.0009064]
[1723883073156,1.39095407,59310.0,59309.0,0.0009064]
[1723883073362,1.39195407,59310.0,59309.0,0.0009064]
[1723883073624,1.51788727,59310.0,59309.0,0.0009064]
[1723883073838,1.51688727,59310.0,59309.0,0.0009064]
[1723883074067,1.51788727,59310.0,59309.0,0.0009064]
[1723883077180,1.36752012,59310.0,59309.0,0.0009064]
[1723883077389,1.24158692,59310.0,59309.0,0.0009064]
[1723883079338,1.36752012,59310.0,59309.0,0.0009064]
[1723883079544,1.20127538,59310.0,59309.0,0.0009064]
[1723883079807,1.3651006,59310.0,59309.0,0.0009064]
[1723883084321,1.36482411,59310.0,59309.0,0.0009064]
[1723883085366,1.2389388,59310.0,59309.0,0.0009064]
[1723883085576,1.36484295,59310.0,59309.0,0.0009064]
[1723883087653,1.2389388,59310.0,59309.0,0.0009064]
[1723883088878,1.23905055,59310.0,59309.0,0.0009064]
[1723883090814,1.37906783,59310.0,59309.0,0.0009064]
[1723883091432,1.63454172,59310.0,59309.0,0.0009064]
[1723883092549,1.48347593,59310.0,59309.0,0.0009064]
[1723883093511,1.48321577,59310.0,59309.0,0.0009064]
[1723883094214,1.34319849,59310.0,59309.0,0.0009064]
[1723883094447,1.34419849,59310.0,59309.0,0.0009064]
[1723883094687,1.64796749,59310.0,59309.0,0.0009064]
[1723883094930,1.74796749,59310.0,59309.0,0.0009064]
[1723883095650,1.180831,59301.0,59300.0,0.0009064]
[1723883095873,1.32275411,59301.0,59300.0,0.0009064]
[1723883096108,1.33581523,59301.0,59300.0,0.0009064]
[1723883097237,1.31967509,59301.0,59300.0,0.0009064]
[1723883097980,1.31994732,59301.0,59300.0,0.0009064]
[1723883098467,1.32294732,59301.0,59300.0,0.0009064]
[1723883100174,1.33328889,59301.0,59300.0,0.0009064]
[1723883100709,1.39244194,59301.0,59300.0,0.0009064]
[1723883100961,1.48714194,59301.0,59300.0,0.0009064]
[1723883101973,1.39244194,59301.0,59300.0,0.0009064]
[1723883102225,1.48714194,59301.0,59300.0,0.0009064]
[1723883105862,1.48597159,59301.0,59300.0,0.0009064]
[1723883109297,1.33211854,59301.0,59300.0,0.0009064]
[1723883109543,1.26831854,59301.0,59300.0,0.0009064]
[1723883109784,1.31347731,59301.0,59300.0,0.0009064]
[1723883110038,1.16223635,59301.0,59300.0,0.0009064]
[1723883110283,1.16481088,59301.0,59300.0,0.0009064]
[1723883110980,1.31605522,59301.0,59300.0,0.0009064]
[1723883112439,1.26280203,59301.0,59300.0,0.0009064]
[1723883119401,1.26201473,59301.0,59300.0,0.0009064]
[1723883124017,1.26189368,59301.0,59300.0,0.0009064]
[1723883126388,1.18389368,59301.0,59300.0,0.0009064]
[1723883131404,1.3542484,59301.0,59300.0,0.0009064]
[1723883133908,1.65085435,59301.0,59300.0,0.0009064]
[1723883134088,1.58049963,59301.0,59300.0,0.0009064]
[1723883134578,1.57849963,59301.0,59300.0,0.0009064]
[1723883134996,1.58049963,59301.0,59300.0,0.0009064]
[1723883135152,1.57749963,59301.0,59300.0,0.0009064]
[1723883135805,1.57849963,59301.0,59300.0,0.0009064]
[1723883136394,1.58049963,59301.0,59300.0,0.0009064]
[1723883138386,1.57749963,59301.0,59300.0,0.0009064]
[1723883139018,1.57849963,59301.0,59300.0,0.0009064]
[1723883140248,1.57749963,59301.0,59300.0,0.0009064]
[1723883142296,1.57256752,59301.0,59300.0,0.0009064]
[1723883142760,1.57356752,59301.0,59300.0,0.0009064]
[1723883143974,1.57556752,59301.0,59300.0,0.0009064]
[1723883144349,1.57256752,59301.0,59300.0,0.0009064]
[1723883144757,1.50956752,59301.0,59300.0,0.0009064]
[1723883145088,1.36216157,59301.0,59300.0,0.0009064]
[1723883145921,1.18426157,59301.0,59300.0,0.0009064]
[1723883146149,1.18426157,59301.0,59300.0,0.1425064]
[1723883146359,0.36953457,59301.0,59300.0,0.1425064]
[1723883146577,0.27421324,59301.0,59300.0,0.1425064]
[1723883146775,0.28005342,59301.0,59300.0,0.1425064]
[1723883146976,0.54986242,59301.0,59300.0,0.1425064]
[1723883148560,0.28005342,59301.0,59300.0,0.1425064]
[1723883149100,0.54986242,59301.0,59300.0,0.1425064]
[1723883149235,0.28005342,59301.0,59300.0,0.1425064]
[1723883150299,0.29681548,59301.0,59300.0,0.1425064]
[1723883151790,0.43171948,59301.0,59300.0,0.1425064]
[1723883152001,0.29681548,59301.0,59300.0,0.1425064]
[1723883152399,0.14514942,59301.0,59300.0,0.1425064]
[1723883152820,0.43171948,59301.0,59300.0,0.1425064]
[1723883153458,0.14514942,59301.0,59300.0,0.1425064]
[1723883153623,0.14514942,59301.0,59300.0,0.31406094]
[1723883157286,0.14533091,59301.0,59300.0,0.31406094]
[1723883158072,0.14333091,59301.0,59300.0,0.31406094]
[1723883158277,0.14233091,59301.0,59300.0,0.31406094]
[1723883159654,0.27823491,59301.0,59300.0,0.31406094]
[1723883160066,0.27723491,59301.0,59300.0,0.31406094]
[1723883160295,0.27723491,59301.0,59300.0,0.31606094]
[1723883160535,0.2773435,59301.0,59300.0,0.31806094]
[1723883163806,0.27742476,59301.0,59300.0,0.31806094]
[1723883164042,0.81704276,59301.0,59300.0,0.0659064]
[1723883164560,0.81704276,59301.0,59300.0,0.0049064]
[1723883164791,0.81704276,59301.0,59300.0,0.0703064]
[1723883168424,0.81648618,59301.0,59300.0,0.0703064]
[1723883170540,0.54667718,59301.0,59300.0,0.0703064]
[1723883170771,0.54667718,59301.0,59300.0,0.1503064]
[1723883172757,0.27686818,59301.0,59300.0,0.1503064]
[1723883173760,0.04726418,59301.0,59300.0,0.45676794]
[1723883174019,0.13939146,59301.0,59300.0,0.45676794]
[1723883174259,0.04726418,59301.0,59300.0,0.45676794]
[1723883174739,0.04726418,59301.0,59300.0,0.32186094]
[1723883174976,0.17359452,59301.0,59300.0,0.32186094]
[1723883175179,0.04726418,59301.0,59300.0,0.45676794]
[1723883175897,0.04726418,59301.0,59300.0,0.72658194]
[1723883177136,0.01306112,59301.0,59300.0,0.72658194]
[1723883177341,0.0492848,59301.0,59300.0,0.72658194]
[1723883177541,0.03622368,59301.0,59300.0,0.72658194]
[1723883177738,0.12631376,59302.0,59301.0,0.279004]
[1723883177946,0.12631376,59302.0,59301.0,0.45055854]
[1723883178310,0.12631376,59302.0,59301.0,0.72036754]
[1723883178520,0.1624888,59302.0,59301.0,0.72036754]
[1723883178920,0.12631376,59302.0,59301.0,0.72036754]
[1723883179121,0.12631376,59302.0,59301.0,0.72136754]
[1723883179525,0.12631376,59302.0,59301.0,0.45155854]
[1723883179734,0.12631376,59302.0,59301.0,0.45255854]
[1723883182183,0.1624888,59302.0,59301.0,0.45255854]
[1723883182773,0.1624888,59302.0,59301.0,0.72236754]
[1723883183183,0.03617504,59302.0,59301.0,0.72236754]
[1723883183385,0.1624888,59302.0,59301.0,0.72236754]
[1723883184294,0.1624888,59302.0,59301.0,0.45255854]
[1723883188427,0.03617504,59302.0,59301.0,0.45255854]
[1723883190486,0.04860883,59302.0,59301.0,0.45255854]
[1723883190691,0.04817679,59302.0,59301.0,0.45255854]
[1723883195371,0.04809198,59302.0,59301.0,0.45255854]
[1723883195811,0.04809198,59302.0,59301.0,0.72236754]
[1723883196019,0.04809198,59302.0,59301.0,1.37811482]
[1723883196020,0.08836615,59302.0,59301.0,1.37811482]
[1723883196243,0.01243379,59302.0,59301.0,1.40211482]
[1723883196451,0.01243379,59302.0,59301.0,1.50411482]
[1723883196654,0.000824,59309.0,59308.0,1.087923]
[1723883196862,0.000824,59309.0,59308.0,1.28090682]
[1723883197074,0.01325489,59309.0,59308.0,1.28090682]
[1723883197276,0.000824,59309.0,59308.0,1.28090682]
[1723883197872,0.000824,59309.0,59308.0,1.28089616]
[1723883198087,0.001824,59309.0,59308.0,1.29389616]
[1723883198286,0.001824,59309.0,59308.0,1.27247754]
[1723883198670,0.003824,59309.0,59308.0,1.29747754]
[1723883199032,0.002824,59309.0,59308.0,1.28547754]
[1723883199459,0.003824,59309.0,59308.0,1.29947754]
[1723883199861,0.000824,59309.0,59308.0,1.25947754]
[1723883200246,0.000824,59309.0,59308.0,1.28747754]
[1723883200247,0.002824,59309.0,59308.0,1.28747754]
[1723883200444,0.002824,59309.0,59308.0,1.27347754]
[1723883200849,0.003824,59309.0,59308.0,1.28747754]
[1723883201505,0.002824,59309.0,59308.0,1.27347754]
[1723883201703,0.003824,59309.0,59308.0,1.28747754]
[1723883208378,0.003824,59309.0,59308.0,0.93579954]
[1723883208587,0.003824,59309.0,59308.0,0.87399954]
[1723883217859,0.01630267,59309.0,59308.0,0.87490594]
[1723883222488,0.01630267,59309.0,59308.0,0.95440594]
[1723883222934,0.003824,59309.0,59308.0,0.95440594]
[1723883232440,0.003824,59309.0,59308.0,0.87490594]
[1723883233221,0.01629049,59309.0,59308.0,0.87490594]
[1723883235140,0.06682087,59309.0,59308.0,0.87490594]
[1723883236188,0.06682087,59309.0,59308.0,0.60512794]
[1723883237216,0.01629049,59309.0,59308.0,0.60512794]
[1723883238200,0.09208607,59309.0,59308.0,0.60512794]
[1723883238989,0.09208607,59309.0,59308.0,0.33534994]
[1723883239206,0.15921782,59309.0,59308.0,0.60512794]
[1723883239431,0.15967756,59309.0,59308.0,0.60512794]
[1723883239629,0.15967756,59309.0,59308.0,0.33534994]
[1723883240127,0.05852095,59309.0,59308.0,0.33534994]
[1723883240348,0.05852095,59309.0,59308.0,0.20046094]
[1723883240550,0.05852095,59309.0,59308.0,0.0289064]
[1723883240551,0.61177995,59309.0,59308.0,0.0289064]
[1723883240750,0.49374187,59309.0,59308.0,0.0289064]
[1723883241003,0.34200695,59309.0,59308.0,0.0289064]